[Event "European Amateur-ch U2000 2019"]
[Site "Rhodes"]
[Date "2019.04.12"]
[Round "7.8"]
[White "Petukhov, Igor"]
[Black "Mohnblatt, Daniel"]
[Result "1/2-1/2"]
[ECO "B03"]
[WhiteElo "1819"]
[BlackElo "1708"]
[Annotator "NA"]
[PlyCount "80"]
[EventDate "2019.04.06"]
[EventType "swiss"]
[EventCountry "GRE"]
[SourceTitle "playchess.com"]
[Source "ChessBase"]
[SourceQuality "1"]
[TimeControl "40/5400+30:1800+30"]

1. e4 {[%emt 0:00:00]} Nf6 {[%emt 0:00:00]} 2. e5 {[%emt 0:00:00]} Nd5 {[%emt 0:00:00]} 3. d4 {[%emt 0:00:04]} d6 {[%emt 0:00:03]} 4. c4 {[%emt 0:01:39]} Nb6 {[%emt 0:00:06]} 5. f4 {[%emt 0:00:11]} dxe5 {[%emt 0:00:06]} 6. fxe5 {[%emt 0:00:31]} Nc6 {[%emt 0:00:20]} 7. Be3 {[%emt 0:01:36]} Bf5 {[%emt 0:00:14]} 8. Be2 {[%emt 0:09:44]} e6 {[%emt 0:00:14]} 9. Nf3 {[%emt 0:00:48]} Be7 {[%emt 0:00:23]} 10. Nc3 {[%emt 0:02:52]} O-O {[%emt 0:00:07] B03: Alekhine's Defence: Four Pawns Attack} 11. a3 {[%emt 0:00:52]} (11. O-O f6 12. Qe1 fxe5 13. dxe5 Nd7 14. Rd1 Qe8 15. Qg3 Bc5 16. Qf2 b6 17. a3 a5 18. Nb5 Rc8 19. Bxc5 Nxc5 20. Qe3 {1-0 (43) Jones,G (2640)-Hjartarson,J (2536) chess.com INT 2018}) 11... a5 {[%emt 0:00:30]} 12. O-O {[%emt 0:04:01]} f6 {[%emt 0:00:15]} 13. Nh4 {[%emt 0:03:55]} fxe5 {[%emt 0:00:37]} 14. Nxf5 {[%emt 0:00:21]} exf5 {[%emt 0:00:20]} 15. d5 $146 {[%emt 0:01:35]} ({Predecessor:} 15. Nb5 f4 16. Bf2 e4 17. d5 e3 18. Be1 Ne5 19. Qc2 Bc5 20. Qe4 Qe7 21. Bc3 Nbxc4 {0-1 (21) Pohl,D-Stodola,Z Svetla nad Sazavou 1998}) 15... Nd4 $1 {[%emt 0:00:08]} 16. Bxd4 {[%emt 0:04:02]} exd4 {[%emt 0:00:08]} 17. Qxd4 {[%emt 0:00:58]} Nd7 {[%emt 0:01:18]} 18. Qd2 {[%emt 0:08:27]} Nc5 {[%emt 0:00:27]} 19. Qc2 {[%emt 0:01:58]} Qd7 {[%emt 0:00:48]} 20. Rad1 {[%emt 0:05:25]} Bd6 {[%emt 0:00:20]} 21. Bd3 {[%emt 0:07:31]} Nxd3 {[%emt 0:00:25]} 22. Qxd3 {[%emt 0:00:07]} Rae8 {[%emt 0:00:20]} 23. Nb5 {[%emt 0:00:47]} Bc5+ {[%emt 0:00:19]} 24. Kh1 {[%emt 0:00:58]} Re3 {[%emt 0:00:19]} 25. Qd2 {[%emt 0:00:55]} Rfe8 {[%emt 0:00:17]} 26. Nd4 {[%emt 0:02:42]} Bxd4 {[%emt 0:00:43]} 27. Qxd4 {[%emt 0:00:20]} R8e4 {[%emt 0:01:16]} 28. Qc5 {[%emt 0:04:23]} (28. Qa7 $11) 28... b6 {[%emt 0:00:22]} 29. Qc6 {[%emt 0:01:24]} Qxc6 {[%emt 0:00:54]} 30. dxc6 $17 {[%emt 0:00:07]} g6 {[%emt 0:00:10]} 31. Rd7 {[%emt 0:02:53]} Re7 {[%emt 0:00:11]} 32. g4 {[%emt 0:01:42]} Rxd7 {[%emt 0:00:52]} 33. cxd7 {[%emt 0:00:05]} Rd3 {[%emt 0:00:07]} 34. gxf5 {[%emt 0:00:54]} Rxd7 {[%emt 0:00:02]} 35. fxg6 {[%emt 0:02:21]} hxg6 {[%emt 0:00:01]} 36. Kg2 {[%emt 0:02:23]} Rd4 {[%emt 0:00:30]} 37. b3 {[%emt 0:00:54]} Rd3 {[%emt 0:00:40]} 38. Rf3 {[%emt 0:00:06]} Rd2+ {[%emt 0:00:14]} 39. Kg3 {[%emt 0:00:14]} Kg7 {[%emt 0:00:14]} 40. h4 {[%emt 0:00:00]} Rd4 {[%emt 0:00:00]} 1/2-1/2

[Event "European Amateur-ch U2000 2019"]
[Site "Rhodes"]
[Date "2019.04.12"]
[Round "7.9"]
[White "Wlogalski, Olivier"]
[Black "Zanfir, Iulian"]
[Result "0-1"]
[ECO "A03"]
[WhiteElo "1853"]
[BlackElo "1699"]
[Annotator "NA"]
[PlyCount "141"]
[EventDate "2019.04.06"]
[EventType "swiss"]
[EventCountry "GRE"]
[SourceTitle "playchess.com"]
[Source "ChessBase"]
[SourceQuality "1"]
[TimeControl "40/5400+30:1800+30"]

1. b3 {[%emt 0:00:00]} d5 {[%emt 0:00:09]} 2. Bb2 {[%emt 0:00:00]} c6 {[%emt 0:00:13]} 3. e3 {[%emt 0:00:00]} Nf6 {[%emt 0:00:21]} 4. f4 {[%emt 0:00:04]} Bg4 {[%emt 0:06:11]} 5. Be2 {[%emt 0:00:29]} Bxe2 {[%emt 0:00:19]} 6. Qxe2 {[%emt 0:00:12]} Nbd7 {[%emt 0:01:24]} 7. Nf3 {[%emt 0:01:09]} e6 $11 {[%emt 0:02:52]} 8. d3 {[%emt 0:00:54]} Bc5 {[%emt 0:01:42]} 9. Nbd2 {[%emt 0:03:20]} Qc7 {[%emt 0:05:04]} 10. Ne5 {[%emt 0:00:40]} Nxe5 {[%emt 0:01:42]} 11. Bxe5 Bd6 {[%emt 0:00:30]} 12. Bxd6 {[%emt 0:04:01]} Qxd6 {[%emt 0:01:12]} 13. O-O {[%emt 0:00:06]} g6 {[%emt 0:05:37]} 14. a4 {[%emt 0:03:44]} a5 {[%emt 0:02:42]} 15. Rad1 {[%emt 0:00:49]} O-O {[%emt 0:01:19]} 16. Nf3 {[%emt 0:00:37]} Qc7 {[%emt 0:04:13]} 17. Ne5 {[%emt 0:07:12]} Nd7 18. d4 {[%emt 0:00:00]} Nf6 {[%emt 0:04:52]} 19. Qe1 {[%emt 0:03:36]} c5 {[%emt 0:01:43]} 20. Qh4 {[%emt 0:04:52]} Ne4 {[%emt 0:01:44]} 21. c4 {[%emt 0:07:42]} f6 {[%emt 0:07:15]} 22. Nf3 {[%emt 0:00:28]} dxc4 {[%emt 0:03:52]} 23. bxc4 {[%emt 0:00:18]} Nc3 {[%emt 0:01:46]} 24. Rd3 {[%emt 0:01:22]} cxd4 {[%emt 0:02:33]} 25. Nxd4 {[%emt 0:00:25]} Qxc4 {[%emt 0:01:01]} 26. Rd2 {[%emt 0:02:52]} e5 {[%emt 0:02:38]} 27. Nf3 {[%emt 0:01:20]} Rf7 {[%emt 0:05:44]} 28. Rff2 {[%emt 0:05:40]} Ne4 {[%emt 0:07:09]} 29. Rc2 {[%emt 0:01:53]} Qd3 {[%emt 0:02:56]} 30. Rfe2 {[%emt 0:00:05]} Qd1+ {[%emt 0:01:11]} 31. Ne1 {[%emt 0:00:19]} Qa1 {[%emt 0:04:50]} 32. h3 {[%emt 0:06:47]} Qxa4 {[%emt 0:06:22]} 33. Nf3 {[%emt 0:01:29]} Nd6 {[%emt 0:02:30]} 34. Ra2 {[%emt 0:01:31]} Qd1+ {[%emt 0:02:56]} 35. Kh2 {[%emt 0:01:23]} Nf5 {[%emt 0:00:39]} 36. Qg4 {[%emt 0:04:11]} Kg7 {[%emt 0:02:16]} 37. fxe5 {[%emt 0:00:50]} fxe5 {[%emt 0:00:43]} 38. Qc4 {[%emt 0:10:55]} Re7 {[%emt 0:01:41]} 39. Rad2 {[%emt 0:03:56]} Qa1 {[%emt 0:01:04]} 40. e4 {[%emt 0:01:26]} Nd4 {[%emt 0:01:14]} 41. Nxd4 {[%emt 0:00:28]} exd4 {[%emt 0:00:17]} 42. Rxd4 {[%emt 0:01:00]} b5 {[%emt 0:01:57]} 43. Qd5 {[%emt 0:04:12]} Rae8 {[%emt 0:01:09]} 44. e5 {[%emt 0:00:27]} Re6 {[%emt 0:02:32]} 45. Qb7+ {[%emt 0:03:22]} R8e7 {[%emt 0:00:30]} 46. Rd7 {[%emt 0:02:43]} Qa3 {[%emt 0:01:32]} 47. Qxb5 {[%emt 0:03:23]} Rxd7 {[%emt 0:00:45]} 48. Qxd7+ {[%emt 0:00:07]} Qe7 {[%emt 0:00:08]} 49. Qxe7+ {[%emt 0:00:37]} Rxe7 {[%emt 0:00:13]} 50. Kg3 {[%emt 0:00:45]} Kf7 {[%emt 0:00:39]} 51. Kf4 {[%emt 0:00:03]} Ke6 {[%emt 0:00:11]} 52. Ra2 {[%emt 0:02:16]} Ra7 {[%emt 0:00:59]} 53. Ke4 {[%emt 0:00:09]} a4 {[%emt 0:00:31]} 54. Ra3 {[%emt 0:00:10]} g5 {[%emt 0:00:20]} 55. g4 {[%emt 0:01:59]} Ra5 {[%emt 0:00:28]} 56. Kd4 {[%emt 0:04:33]} Rd5+ {[%emt 0:00:57]} 57. Ke4 {[%emt 0:00:33]} Rxe5+ {[%emt 0:00:10]} 58. Kd4 {[%emt 0:00:04]} Ra5 {[%emt 0:00:33]} 59. Ke4 {[%emt 0:00:04]} Kd6 {[%emt 0:01:02]} 60. Kd4 {[%emt 0:00:04]} h6 {[%emt 0:01:36]} 61. Kc4 {[%emt 0:02:32]} Ke5 {[%emt 0:02:51]} 62. Kb4 {[%emt 0:00:56]} Ra8 {[%emt 0:00:48]} 63. Kb5 {[%emt 0:00:23]} Kd4 {[%emt 0:01:16]} 64. Kb4 {[%emt 0:00:34]} Rb8+ {[%emt 0:00:39]} 65. Ka5 {[%emt 0:00:14]} Kc5 {[%emt 0:00:45]} 66. Rc3+ {[%emt 0:00:37]} Kd4 {[%emt 0:00:36]} 67. Ra3 {[%emt 0:00:04]} Kc4 {[%emt 0:02:57]} 68. Ra1 {[%emt 0:04:04]} Ra8+ {[%emt 0:00:31]} 69. Kb6 {[%emt 0:00:05]} a3 {[%emt 0:00:12]} 70. Kb7 {[%emt 0:09:08]} Ra4 {[%emt 0:00:24]} 71. Re1 {[%emt 0:00:29]} 0-1

[Event "European Amateur-ch U2000 2019"]
[Site "Rhodes"]
[Date "2019.04.12"]
[Round "7.10"]
[White "Frontzos, Ioannis"]
[Black "Florea, Dorina"]
[Result "1-0"]
[ECO "B52"]
[WhiteElo "1504"]
[BlackElo "1734"]
[Annotator "NA"]
[PlyCount "81"]
[EventDate "2019.04.06"]
[EventType "swiss"]
[EventCountry "GRE"]
[SourceTitle "playchess.com"]
[Source "ChessBase"]
[SourceQuality "1"]
[TimeControl "40/5400+30:1800+30"]

1. e4 c5 2. Nf3 d6 3. Bb5+ Bd7 4. Bxd7+ Qxd7 5. O-O Nc6 6. c4 Nf6 7. Nc3 e6 8. d4 cxd4 9. Nxd4 a6 10. Be3 Ne5 11. b3 Neg4 12. Bd2 h5 13. h3 Ne5 14. f4 Nc6 15. Nf3 Be7 16. Qe2 Qc7 17. Kh1 O-O-O 18. Be3 Rdf8 19. Rac1 Kb8 20. a3 Na5 21. Nd2 h4 22. Qf2 Nc6 23. b4 Nh5 24. Rfd1 Ng3+ 25. Kg1 Bf6 26. b5 Ne7 27. bxa6 bxa6 28. Na4 Nc6 29. Rb1+ Kc8 30. Nb6+ Kd8 31. Nd5 Qd7 32. Bb6+ Kc8 33. Nb4 Bd4 34. Bxd4 Nxd4 35. Nf3 Nde2+ 36. Kh2 Nc3 37. Nxa6 Nxb1 38. Rxb1 Kd8 39. c5 Nxe4 40. Qc2 d5 41. Ne5 1-0

[Event "European Amateur-ch U2000 2019"]
[Site "Rhodes"]
[Date "2019.04.13"]
[Round "8.1"]
[White "Kostov, Deyan Samuil"]
[Black "Demirbas, Emre"]
[Result "1/2-1/2"]
[ECO "B22"]
[WhiteElo "1830"]
[BlackElo "1960"]
[Annotator "NA"]
[PlyCount "165"]
[EventDate "2019.04.06"]
[EventType "swiss"]
[EventCountry "GRE"]
[SourceTitle "playchess.com"]
[Source "ChessBase"]
[SourceQuality "1"]
[TimeControl "40/5400+30:1800+30"]

1. e4 {[%emt 0:00:00]} c5 {[%emt 0:00:07]} 2. Nf3 {[%emt 0:00:00]} e6 {[%emt 0:00:47]} 3. c3 {[%emt 0:00:00]} Nf6 {[%emt 0:00:06]} 4. e5 {[%emt 0:00:13]} Nd5 {[%emt 0:00:01]} 5. d4 {[%emt 0:00:10]} cxd4 {[%emt 0:00:01]} 6. cxd4 {[%emt 0:00:08]} d6 {[%emt 0:00:03]} 7. a3 {[%emt 0:00:58]} Nc6 {[%emt 0:00:05]} 8. Bd3 {[%emt 0:00:10]} g6 {[%emt 0:00:18]} 9. O-O {[%emt 0:02:45]} Bg7 {[%emt 0:00:01]} 10. Re1 {[%emt 0:01:14]} O-O {[%emt 0:00:49]} 11. b4 {[%emt 0:04:35]} dxe5 {[%emt 0:03:54]} 12. dxe5 {[%emt 0:00:52]} Qc7 {[%emt 0:00:01]} 13. Bb2 {[%emt 0:01:23]} Rd8 {[%emt 0:01:21]} 14. Qb3 {[%emt 0:02:47]} Nf4 {[%emt 0:09:31]} 15. Bf1 {[%emt 0:04:12]} a6 {[%emt 0:12:02]} 16. g3 {[%emt 0:05:15]} Nd5 {[%emt 0:00:34]} 17. Nbd2 {[%emt 0:00:28]} b5 {[%emt 0:02:57]} 18. Rac1 {[%emt 0:04:30]} Bb7 {[%emt 0:01:37]} 19. Ne4 {[%emt 0:05:40]} Qb6 {[%emt 0:04:47]} 20. Nc5 {[%emt 0:12:37]} Rac8 {[%emt 0:06:02]} 21. Bh3 {[%emt 0:08:37]} a5 {[%emt 0:05:51]} 22. Ng5 {[%emt 0:13:34]} Re8 {[%emt 0:19:24]} 23. Qf3 {[%emt 0:07:55]} Nd8 {[%emt 0:09:39]} 24. Nxb7 {[%emt 0:01:19]} Rxc1 {[%emt 0:01:03]} 25. Rxc1 {[%emt 0:01:29]} Qxb7 {[%emt 0:00:01]} 26. Ne4 {[%emt 0:02:28]} Bf8 {[%emt 0:02:28]} 27. bxa5 {[%emt 0:03:59]} Nc6 {[%emt 0:03:43]} 28. Bg2 {[%emt 0:02:40]} Nxa5 {[%emt 0:01:38]} 29. Qd3 {[%emt 0:06:41]} Qd7 {[%emt 0:03:35]} 30. Qxd5 {[%emt 0:01:38]} Qxd5 {[%emt 0:00:41]} 31. Nf6+ {[%emt 0:00:05]} Kh8 {[%emt 0:00:02]} 32. Bxd5 {[%emt 0:00:06]} Rd8 {[%emt 0:00:28]} 33. Bc6 {[%emt 0:03:29]} Nc4 {[%emt 0:00:31]} 34. Rb1 {[%emt 0:00:25]} Rd2 {[%emt 0:04:07]} 35. Bc3 {[%emt 0:01:23]} Rc2 {[%emt 0:00:57]} 36. Bb4 {[%emt 0:01:09]} Nxa3 {[%emt 0:04:25]} 37. Bxa3 {[%emt 0:00:28]} Bxa3 {[%emt 0:00:01]} 38. Bxb5 {[%emt 0:00:23]} Bc5 {[%emt 0:00:38]} 39. Rf1 {[%emt 0:00:50]} h5 {[%emt 0:00:48]} 40. Bd3 {[%emt 0:00:00]} Ra2 {[%emt 0:00:00]} 41. Ne4 {[%emt 0:14:20]} Bd4 {[%emt 0:00:23]} 42. Ng5 {[%emt 0:00:35]} Kg7 {[%emt 0:00:01]} 43. Bc4 {[%emt 0:00:49]} Ra5 {[%emt 0:02:07]} 44. Nf3 {[%emt 0:03:24]} Bxe5 {[%emt 0:00:11]} 45. Nxe5 {[%emt 0:00:05]} Rxe5 {[%emt 0:00:01]} 46. Kg2 {[%emt 0:00:47]} h4 {[%emt 0:00:23]} 47. Ra1 {[%emt 0:03:31]} hxg3 {[%emt 0:00:11]} 48. hxg3 {[%emt 0:00:14]} Rc5 {[%emt 0:00:12]} 49. Be2 {[%emt 0:01:32]} Kf6 {[%emt 0:01:03]} 50. Ra6 {[%emt 0:00:38]} Re5 {[%emt 0:00:18]} 51. Bd3 {[%emt 0:00:53]} Rd5 {[%emt 0:00:29]} 52. Be4 {[%emt 0:01:29]} Rb5 {[%emt 0:00:30]} 53. f3 {[%emt 0:02:21]} Rb2+ {[%emt 0:01:08]} 54. Kh3 {[%emt 0:00:12]} Rb5 {[%emt 0:00:17]} 55. Ra8 {[%emt 0:01:17]} Rh5+ {[%emt 0:00:22]} 56. Kg2 {[%emt 0:00:06]} Rb5 {[%emt 0:00:19]} 57. g4 {[%emt 0:01:24]} Ke5 {[%emt 0:01:26]} 58. Kg3 {[%emt 0:03:08]} Rc5 {[%emt 0:02:44]} 59. Rg8 {[%emt 0:00:56]} Kf6 {[%emt 0:02:24]} 60. Kf4 {[%emt 0:00:52]} Ra5 {[%emt 0:00:30]} 61. Rf8 {[%emt 0:00:27]} Kg7 {[%emt 0:01:09]} 62. Re8 {[%emt 0:00:26]} Kf6 {[%emt 0:00:13]} 63. Rg8 {[%emt 0:01:02]} Rc5 {[%emt 0:00:33]} 64. Rd8 {[%emt 0:01:06]} Ke7 {[%emt 0:00:53]} 65. Rg8 {[%emt 0:00:37]} Kf6 {[%emt 0:00:02]} 66. Ra8 {[%emt 0:00:36]} Rb5 {[%emt 0:01:31]} 67. Ra1 {[%emt 0:00:19]} Rc5 {[%emt 0:00:29]} 68. Rg1 {[%emt 0:00:08]} g5+ {[%emt 0:00:23]} 69. Ke3 {[%emt 0:01:15]} Ke5 {[%emt 0:00:01]} 70. Rh1 {[%emt 0:01:12]} Rc3+ {[%emt 0:02:33]} 71. Kd2 {[%emt 0:00:35]} Ra3 {[%emt 0:00:18]} 72. Rh5 {[%emt 0:00:47]} Kf4 {[%emt 0:00:08]} 73. Rh6 {[%emt 0:00:51]} f5 {[%emt 0:00:36]} 74. Rxe6 {[%emt 0:00:30]} fxe4 {[%emt 0:00:14]} 75. Rf6+ {[%emt 0:01:10]} Kg3 {[%emt 0:00:51]} 76. fxe4 {[%emt 0:00:46]} Kxg4 {[%emt 0:00:02]} 77. e5 {[%emt 0:00:32]} Ra5 {[%emt 0:00:01]} 78. Re6 {[%emt 0:00:16]} Kf3 {[%emt 0:00:22]} 79. Re8 {[%emt 0:00:24]} g4 {[%emt 0:00:08]} 80. e6 {[%emt 0:00:04]} Re5 {[%emt 0:00:35]} 81. e7 {[%emt 0:00:09]} Kg3 {[%emt 0:00:11]} 82. Kd3 {[%emt 0:00:17]} Re6 {[%emt 0:00:33]} 83. Kd2 {[%emt 0:00:14]} 1/2-1/2

[Event "European Amateur-ch U2000 2019"]
[Site "Rhodes"]
[Date "2019.04.13"]
[Round "8.2"]
[White "Ruzic, Pia Marie"]
[Black "Mihalache, Paul-Stelian"]
[Result "1-0"]
[ECO "A21"]
[WhiteElo "1800"]
[BlackElo "1830"]
[Annotator "NA"]
[PlyCount "79"]
[EventDate "2019.04.06"]
[EventType "swiss"]
[EventCountry "GRE"]
[SourceTitle "playchess.com"]
[Source "ChessBase"]
[SourceQuality "1"]
[TimeControl "40/5400+30:1800+30"]

1. c4 {[%emt 0:00:00]} g6 {[%emt 0:00:00]} 2. Nc3 {[%emt 0:00:00]} Bg7 {[%emt 0:00:00]} 3. g3 {[%emt 0:00:26]} e5 {[%emt 0:00:08]} 4. Bg2 {[%emt 0:00:09]} d6 {[%emt 0:00:29]} 5. e4 {[%emt 0:00:24]} c6 {[%emt 0:00:55]} 6. Nge2 {[%emt 0:00:12]} f5 {[%emt 0:01:42]} 7. d3 {[%emt 0:00:43]} Nf6 {[%emt 0:01:26]} 8. O-O {[%emt 0:01:05]} O-O {[%emt 0:00:21]} 9. Kh1 {[%emt 0:08:46]} Nbd7 {[%emt 0:04:20]} 10. f3 {[%emt 0:04:26]} Nh5 {[%emt 0:07:20]} 11. Bh3 {[%emt 0:11:33]} Nc5 {[%emt 0:08:33]} 12. Be3 {[%emt 0:14:08]} f4 {[%emt 0:07:11]} 13. Bxc8 {[%emt 0:02:28]} Rxc8 {[%emt 0:08:59]} 14. gxf4 {[%emt 0:03:29]} exf4 {[%emt 0:02:55]} 15. Bf2 {[%emt 0:00:07]} b6 {[%emt 0:11:46]} 16. d4 {[%emt 0:03:22]} Ne6 {[%emt 0:00:43]} 17. d5 {[%emt 0:04:53]} Ng5 {[%emt 0:02:34]} 18. Bh4 {[%emt 0:00:12]} Bf6 {[%emt 0:02:42]} 19. dxc6 {[%emt 0:07:43]} Nxe4 {[%emt 0:02:11]} 20. Nxe4 {[%emt 0:02:26]} Bxh4 {[%emt 0:00:20]} 21. Qd5+ {[%emt 0:00:34]} Kh8 {[%emt 0:01:01]} 22. Nxd6 {[%emt 0:00:31]} Rc7 {[%emt 0:02:18]} 23. Rad1 {[%emt 0:03:45]} Qe7 {[%emt 0:07:28]} 24. Nd4 {[%emt 0:07:53]} Rf6 {[%emt 0:12:44]} 25. N4b5 {[%emt 0:05:23]} Qe2 {[%emt 0:03:53]} 26. Nxc7 {[%emt 0:09:18]} Ng3+ {[%emt 0:00:15]} 27. hxg3 {[%emt 0:00:03]} fxg3 {[%emt 0:00:13]} 28. Nf7+ {[%emt 0:02:04]} Rxf7 {[%emt 0:07:31]} 29. Qd4+ {[%emt 0:00:03]} Kg8 {[%emt 0:00:42]} 30. Qxh4 {[%emt 0:00:33]} g2+ {[%emt 0:00:47]} 31. Kg1 {[%emt 0:00:03]} gxf1=Q+ {[%emt 0:00:38]} 32. Rxf1 {[%emt 0:00:05]} Qe3+ {[%emt 0:01:20]} 33. Kg2 {[%emt 0:00:36]} g5 {[%emt 0:01:51]} 34. Nd5 {[%emt 0:02:53]} Qe2+ {[%emt 0:00:48]} 35. Rf2 {[%emt 0:00:06]} Qe6 {[%emt 0:00:31]} 36. Qe4 {[%emt 0:00:22]} Qh6 {[%emt 0:00:37]} 37. c7 {[%emt 0:00:22]} Rf8 {[%emt 0:00:35]} 38. c8=Q {[%emt 0:00:21]} Rxc8 {[%emt 0:00:01]} 39. Ne7+ {[%emt 0:00:02]} Kf7 {[%emt 0:00:09]} 40. Nxc8 {[%emt 0:00:00]} 1-0

[Event "European Amateur-ch U2000 2019"]
[Site "Rhodes"]
[Date "2019.04.13"]
[Round "8.3"]
[White "Zielinski, Olgierd"]
[Black "Flis, Pawel"]
[Result "1-0"]
[ECO "C89"]
[WhiteElo "1850"]
[BlackElo "1903"]
[Annotator "NA"]
[PlyCount "133"]
[EventDate "2019.04.06"]
[EventType "swiss"]
[EventCountry "GRE"]
[SourceTitle "playchess.com"]
[Source "ChessBase"]
[SourceQuality "1"]
[TimeControl "40/5400+30:1800+30"]

1. e4 {[%emt 0:00:00]} e5 {[%emt 0:00:00]} 2. Nf3 {[%emt 0:00:00]} Nc6 {[%emt 0:00:00]} 3. Bb5 {[%emt 0:00:00]} a6 {[%emt 0:00:00]} 4. Ba4 {[%emt 0:00:00]} Nf6 {[%emt 0:00:11]} 5. O-O {[%emt 0:00:17]} Be7 {[%emt 0:00:22]} 6. Re1 {[%emt 0:00:18]} b5 {[%emt 0:00:13]} 7. Bb3 {[%emt 0:00:08]} O-O {[%emt 0:00:09]} 8. c3 {[%emt 0:00:06]} d5 {[%emt 0:00:28]} 9. exd5 {[%emt 0:00:19]} Nxd5 {[%emt 0:00:07]} 10. Nxe5 {[%emt 0:00:14]} Nxe5 {[%emt 0:00:10]} 11. Rxe5 {[%emt 0:00:10]} c6 {[%emt 0:00:08]} 12. d3 {[%emt 0:01:12]} Bd6 {[%emt 0:00:35]} 13. Re1 {[%emt 0:00:21]} Bf5 {[%emt 0:02:47]} 14. Qf3 {[%emt 0:25:29]} Qd7 {[%emt 0:05:23]} 15. h3 {[%emt 0:00:18]} Rae8 {[%emt 0:00:26]} 16. Bd2 {[%emt 0:02:42]} Nf4 {[%emt 0:06:04]} 17. d4 {[%emt 0:03:12]} Rxe1+ {[%emt 0:17:12]} 18. Bxe1 {[%emt 0:00:13]} Nd3 {[%emt 0:04:16]} 19. Bc2 {[%emt 0:01:44]} Nxe1 {[%emt 0:00:41]} 20. Qxf5 {[%emt 0:00:07]} Qxf5 {[%emt 0:00:14]} 21. Bxf5 {[%emt 0:00:07]} g6 {[%emt 0:00:23]} 22. Be4 {[%emt 0:02:28]} Re8 {[%emt 0:07:37]} 23. Nd2 {[%emt 0:16:59]} Bf4 {[%emt 0:06:49]} 24. Rxe1 {[%emt 0:04:04]} Bxd2 {[%emt 0:00:39]} 25. Rd1 {[%emt 0:01:46]} Rxe4 {[%emt 0:10:43]} 26. Rxd2 {[%emt 0:00:07]} Re1+ {[%emt 0:00:04]} 27. Kh2 {[%emt 0:00:06]} Kf8 {[%emt 0:00:29]} 28. Kg3 {[%emt 0:00:14]} Ke7 {[%emt 0:04:44]} 29. Kf3 {[%emt 0:00:43]} Kd6 {[%emt 0:05:50]} 30. Re2 {[%emt 0:00:19]} Ra1 {[%emt 0:00:55]} 31. a3 {[%emt 0:00:25]} Rb1 {[%emt 0:00:19]} 32. Ke4 {[%emt 0:01:10]} a5 {[%emt 0:04:45]} 33. Kd3 {[%emt 0:03:49]} Rd1+ {[%emt 0:06:16]} 34. Kc2 {[%emt 0:02:41]} Rg1 {[%emt 0:01:13]} 35. g3 {[%emt 0:03:48]} Rh1 {[%emt 0:00:39]} 36. h4 {[%emt 0:00:07]} Rf1 {[%emt 0:00:43]} 37. Kd3 {[%emt 0:02:55]} Rd1+ {[%emt 0:00:44]} 38. Ke4 {[%emt 0:01:12]} f6 {[%emt 0:04:17]} 39. h5 {[%emt 0:07:37]} Rh1 {[%emt 0:00:22]} 40. hxg6 {[%emt 0:00:00]} hxg6 {[%emt 0:00:00]} 41. g4 {[%emt 0:05:44]} Rg1 {[%emt 0:05:44]} 42. f3 {[%emt 0:05:35]} Rh1 {[%emt 0:02:46]} 43. Kf4 {[%emt 0:12:27]} Rh3 {[%emt 0:02:28]} 44. g5 {[%emt 0:03:24]} Rh4+ {[%emt 0:16:36]} 45. Kg3 {[%emt 0:00:02]} fxg5 {[%emt 0:00:15]} 46. Re5 {[%emt 0:02:18]} Rh5 {[%emt 0:05:35]} 47. a4 {[%emt 0:09:37]} b4 {[%emt 0:06:07]} 48. Rxa5 {[%emt 0:04:39]} bxc3 {[%emt 0:00:06]} 49. bxc3 {[%emt 0:00:12]} Rh1 {[%emt 0:01:33]} 50. Rxg5 {[%emt 0:00:20]} Kd7 {[%emt 0:00:51]} 51. Kf4 {[%emt 0:00:40]} Rc1 {[%emt 0:00:40]} 52. Rc5 {[%emt 0:00:50]} Kd6 {[%emt 0:00:49]} 53. a5 {[%emt 0:00:35]} Ra1 {[%emt 0:00:52]} 54. Kg5 {[%emt 0:03:02]} Rg1+ {[%emt 0:00:13]} 55. Kf6 {[%emt 0:00:07]} Rf1 {[%emt 0:00:16]} 56. a6 {[%emt 0:01:48]} Rxf3+ {[%emt 0:00:16]} 57. Kxg6 {[%emt 0:00:10]} Rg3+ {[%emt 0:02:51]} 58. Kf5 {[%emt 0:00:45]} Rf3+ {[%emt 0:01:41]} 59. Ke4 {[%emt 0:00:10]} Rf7 {[%emt 0:00:18]} 60. Ra5 {[%emt 0:00:22]} Ra7 {[%emt 0:00:05]} 61. Kd3 {[%emt 0:00:31]} Kc7 {[%emt 0:00:20]} 62. Kc4 {[%emt 0:00:31]} Kb6 {[%emt 0:02:33]} 63. Ra1 {[%emt 0:00:16]} Ra8 {[%emt 0:00:15]} 64. a7 {[%emt 0:00:08]} Kb7 {[%emt 0:00:57]} 65. Kc5 {[%emt 0:00:12]} Kc7 {[%emt 0:00:26]} 66. Rh1 {[%emt 0:02:41]} Kb7 {[%emt 0:00:12]} 67. Rh7+ {[%emt 0:00:09]} 1-0

[Event "European Amateur-ch U2000 2019"]
[Site "Rhodes"]
[Date "2019.04.13"]
[Round "8.4"]
[White "Jamba, Alexandru"]
[Black "Frontzos, Ioannis"]
[Result "1/2-1/2"]
[ECO "A29"]
[WhiteElo "1852"]
[BlackElo "1504"]
[Annotator "NA"]
[PlyCount "46"]
[EventDate "2019.04.06"]
[EventType "swiss"]
[EventCountry "GRE"]
[SourceTitle "playchess.com"]
[Source "ChessBase"]
[SourceQuality "1"]
[TimeControl "40/5400+30:1800+30"]

1. c4 {[%emt 0:00:00]} e5 {[%emt 0:00:00]} 2. Nc3 {[%emt 0:00:00]} Nf6 {[%emt 0:00:00]} 3. g3 {[%emt 0:00:14]} Bb4 {[%emt 0:00:39]} 4. Bg2 {[%emt 0:00:00]} O-O {[%emt 0:00:32]} 5. Nf3 {[%emt 0:01:23]} Nc6 {[%emt 0:00:45]} 6. d3 {[%emt 0:00:55]} h6 {[%emt 0:01:46]} 7. O-O {[%emt 0:00:21]} Bxc3 {[%emt 0:09:54]} 8. bxc3 {[%emt 0:00:17]} Re8 {[%emt 0:03:30]} 9. e4 {[%emt 0:07:55]} d6 {[%emt 0:05:35]} 10. h3 {[%emt 0:03:53]} Na5 {[%emt 0:09:15]} 11. Be3 {[%emt 0:06:44]} c6 {[%emt 0:06:04]} 12. Nd2 {[%emt 0:04:12]} d5 {[%emt 0:05:01]} 13. cxd5 {[%emt 0:01:07]} cxd5 {[%emt 0:00:27]} 14. Nb3 {[%emt 0:15:55]} dxe4 {[%emt 0:09:21]} 15. dxe4 {[%emt 0:00:32]} Qxd1 {[%emt 0:03:10]} 16. Rfxd1 {[%emt 0:00:12]} Nc4 {[%emt 0:02:12]} 17. Bc5 {[%emt 0:17:25]} b6 {[%emt 0:01:05]} 18. Bd6 {[%emt 0:01:33]} Nxd6 {[%emt 0:02:18]} 19. Rxd6 {[%emt 0:00:07]} Bb7 {[%emt 0:04:08]} 20. f3 {[%emt 0:00:27]} Red8 {[%emt 0:02:14]} 21. Rad1 {[%emt 0:00:14]} Rxd6 {[%emt 0:00:10]} 22. Rxd6 {[%emt 0:00:07]} Kf8 {[%emt 0:01:53]} 23. Bf1 {[%emt 0:02:09]} Ke7 {[%emt 0:00:54]} 1/2-1/2